fUST/lending_fUST_20260427
["ID","MTS","AMOUNT","RATE_DAILY","PERIOD"]
[421185675,1777224642369,-263.54,0.00018999,2]
[421185676,1777224642378,-1930.01,0.00018999,2]
[421185677,1777224642391,-1930.01,0.00018999,2]
[421185678,1777224642402,-1930.01,0.00018999,2]
[421185679,1777224642412,-1930.01,0.00018999,2]
[421185680,1777224642422,-1930.01,0.00018999,2]
[421185681,1777224642431,-1930.01,0.00018999,2]
[421185682,1777224642441,-1930.01,0.00018999,2]
[421185683,1777224642451,-1930.01,0.00018999,2]
[421185684,1777224642462,-500.0,0.00018999,2]
[421185685,1777224642471,-491.46496444,0.00018999,2]
[421185686,1777224642480,-765.02,0.00018999,2]
[421185687,1777224642490,-765.02,0.00018999,2]
[421185688,1777224642499,-765.02,0.00018999,2]
[421185689,1777224642508,-765.02,0.00018999,2]
[421185690,1777224642517,-765.02,0.00018999,2]
[421185691,1777224642527,-765.02,0.00018999,2]
[421185692,1777224642536,-765.02,0.00018999,2]
[421185693,1777224642545,-765.02,0.00018999,2]
[421185694,1777224642555,-765.20894925,0.00018999,2]
[421185695,1777224642565,-500.0,0.00018999,2]
[421185696,1777224642574,-500.0,0.00018999,2]
[421185697,1777224642584,-500.0,0.00018999,2]
[421185698,1777224642593,-330.86,0.00018999,2]
[421185699,1777224642602,-162784.75266684,0.00019,7]
[421185700,1777224642612,-151.0,0.00019,2]
[421185701,1777224642622,-151.0,0.00019,2]
[421185702,1777224642631,-151.0,0.00019,2]
[421185703,1777224642640,-151.0,0.00019,2]
[421185704,1777224642650,-152.040016,0.00019,2]
[421185705,1777224642660,-162.421986,0.00019,2]
[421185706,1777224642669,-151.0,0.00019,2]
[421185707,1777224642679,-151.0,0.00019,2]
[421185708,1777224642688,-167.300273,0.00019,2]
[421185709,1777224642698,-167.300273,0.00019,2]
[421185710,1777224642708,-167.300273,0.00019,2]
[421185711,1777224642718,-167.300273,0.00019,2]
[421185712,1777224642727,-151.0,0.00019,2]
[421185713,1777224642736,-275.584219,0.00019,2]
[421185715,1777224642746,-275.584219,0.00019,2]
[421185717,1777224642756,-275.584219,0.00019,2]
[421185718,1777224642765,-275.584219,0.00019,2]
[421185720,1777224642775,-151.0,0.00019,2]
[421185721,1777224642785,-151.0,0.00019,2]
[421185722,1777224642794,-151.0,0.00019,2]
[421185723,1777224642804,-151.0,0.00019,2]
[421185724,1777224642815,-151.0,0.00019,2]
[421185725,1777224642825,-151.0,0.00019,2]
[421185727,1777224642835,-1535.74961532,0.00019063,2]
[421185729,1777224642844,-3637.39619654,0.00019077,2]
[421185730,1777224642854,-565.5,0.00019084,2]
[421185731,1777224642864,-151.0,0.000191,2]
[421185732,1777224642874,-151.0,0.000191,2]
[421185733,1777224642883,-200.0,0.00019152,2]
[421185734,1777224642892,-64625.96733164,0.00019176,2]
[421185735,1777224642902,-155.0,0.00019177,2]
[421185737,1777224642912,-582.14,0.00019177,2]
[421185738,1777224642921,-582.14,0.00019177,2]
[421185739,1777224642930,-582.14,0.00019177,2]
[421185740,1777224642939,-582.14,0.00019177,2]
[421185741,1777224642948,-582.14,0.00019177,2]
[421185742,1777224642958,-582.14,0.00019177,2]
[421185743,1777224642967,-582.14,0.00019177,2]
[421185744,1777224642977,-582.14,0.00019177,2]
[421185745,1777224642987,-582.14,0.00019177,2]
[421185746,1777224642996,-582.14,0.00019177,2]
[421185747,1777224643005,-582.28255573,0.00019177,2]
[421185748,1777224643015,-2554.36,0.00019177,2]
[421185749,1777224643024,-2554.36,0.00019177,2]
[421185750,1777224643034,-2554.36,0.00019177,2]
[421185751,1777224643043,-2554.36,0.00019177,2]
[421185752,1777224643053,-2554.36,0.00019177,2]
[421185753,1777224643062,-2554.36,0.00019177,2]
[421185754,1777224643072,-2554.36,0.00019177,2]
[421185755,1777224643082,-2554.36,0.00019177,2]
[421185756,1777224643092,-2554.36,0.00019177,2]
[421185757,1777224643102,-2554.36,0.00019177,2]
[421185758,1777224643112,-2554.52737987,0.00019177,2]
[421185759,1777224643121,-1930.01,0.00019177,2]
[421185760,1777224643130,-1930.01,0.00019177,2]
[421185761,1777224643139,-1930.01,0.00019177,2]
[421185762,1777224643150,-1930.01,0.00019177,2]
[421185763,1777224643159,-1930.01,0.00019177,2]
[421185764,1777224643169,-1930.01,0.00019177,2]
[421185765,1777224643178,-1930.01,0.00019177,2]
[421185766,1777224643188,-1930.01,0.00019177,2]
[421185767,1777224643198,-1930.01,0.00019177,2]
[421185768,1777224643207,-1930.01,0.00019177,2]
[421185769,1777224643217,-1930.04451831,0.00019177,2]
[421185770,1777224643226,-616.1629,0.00019178,2]
[421185771,1777224643235,-1439.0982,0.00019178,2]
[421185772,1777224643244,-171.111487,0.00019178,2]
[421185773,1777224643253,-191.772719,0.00019178,2]
[421185774,1777224643263,-736.13917,0.00019178,2]
[421185775,1777224643272,-958.863597,0.00019178,2]
[421185776,1777224643281,-500.0,0.00019178,2]
[421185777,1777224643291,-500.0,0.00019178,2]
[421185778,1777224643300,-500.0,0.00019178,2]
[421185780,1777224643309,-500.0,0.00019178,2]
[421185782,1777224643319,-500.0,0.00019178,2]
[421185784,1777224643328,-500.0,0.00019178,2]
[421185786,1777224643337,-500.0,0.00019178,2]
[421185788,1777224643346,-744.28,0.00019178,2]
[421185790,1777224643356,-500.0,0.00019178,2]
[421185792,1777224643367,-500.0,0.00019178,2]
[421185794,1777224643376,-500.0,0.00019178,2]
[421185796,1777224643386,-620.26863194,0.00019178,2]
[421185798,1777224643395,-500.0,0.00019178,2]
[421185800,1777224643404,-500.0,0.00019178,2]
[421185802,1777224643414,-500.0,0.00019178,2]
[421185804,1777224643424,-500.0,0.00019178,2]
[421185806,1777224643434,-500.0,0.00019178,2]
[421185808,1777224643444,-500.0,0.00019178,2]
[421185810,1777224643454,-500.0,0.00019178,2]
[421185812,1777224643463,-500.0,0.00019178,2]
[421185814,1777224643473,-500.0,0.00019178,2]
[421185816,1777224643483,-1265.97,0.00019178,2]
[421185818,1777224643492,-548.47,0.00019178,2]
[421185820,1777224643502,-221.89488284,0.00019178,2]
[421185822,1777224643512,-522.17563717,0.00019178,2]
[421185824,1777224643521,-500.0,0.00019178,2]
[421185826,1777224643531,-513.78104169,0.00019178,2]
[421185828,1777224643540,-512.61480349,0.00019178,2]
[421185830,1777224643550,-500.0,0.00019178,2]
[421185832,1777224643560,-500.0,0.00019178,2]
[421185834,1777224643570,-1843.88,0.00019178,2]
[421185836,1777224643580,-332.16759933,0.00019178,2]
[421185838,1777224643590,-500.0,0.00019178,2]
[421185840,1777224643600,-500.0,0.00019178,2]
[421185842,1777224643609,-519.00113365,0.00019178,2]
[421185844,1777224643619,-537.01480175,0.00019178,2]
[421185846,1777224643629,-500.0,0.00019178,2]
[421185847,1777224643640,-500.0,0.00019178,2]
[421185849,1777224643650,-500.0,0.00019178,2]
[421185851,1777224643659,-1642.88,0.00019178,2]
[421185853,1777224643669,-500.0,0.00019178,2]
[421185855,1777224643679,-250.18599345,0.00019178,2]
[421185857,1777224643689,-500.0,0.00019178,2]
[421185859,1777224643699,-528.34977232,0.00019178,2]
[421185861,1777224643708,-2440.24,0.00019178,2]
[421185863,1777224643718,-534.5131055,0.00019178,2]
[421185865,1777224643730,-500.0,0.00019178,2]
[421185867,1777224643740,-1770.64,0.00019178,2]
[421185869,1777224643749,-500.0,0.00019178,2]
[421185871,1777224643759,-500.0,0.00019178,2]
[421185873,1777224643769,-776.32,0.00019178,2]
[421185875,1777224643779,-213.06338919,0.00019178,2]
[421185877,1777224643789,-500.0,0.00019178,2]
[421185879,1777224643799,-567.87,0.00019178,2]
[421185881,1777224643809,-268.03231488,0.00019178,2]
[421185883,1777224643819,-500.0,0.00019178,2]
[421185885,1777224643829,-500.0,0.00019178,2]
[421185887,1777224643839,-500.0,0.00019178,2]
[421185889,1777224643849,-500.0,0.00019178,2]
[421185891,1777224643859,-516.68019482,0.00019178,2]
[421185893,1777224643869,-500.0,0.00019178,2]
[421185895,1777224643879,-500.0,0.00019178,2]
[421185897,1777224643889,-500.0,0.00019178,2]
[421185899,1777224643899,-527.94035254,0.00019178,2]
[421185901,1777224643911,-516.23242442,0.00019178,2]
[421185903,1777224643921,-508.66151127,0.00019178,2]
[421185905,1777224643931,-500.0,0.00019178,2]
[421185907,1777224643940,-541.32,0.00019178,2]
[421185909,1777224643950,-500.0,0.00019178,2]
[421185911,1777224643959,-500.0,0.00019178,2]
[421185913,1777224643969,-500.0,0.00019178,2]
[421185915,1777224643979,-500.0,0.00019178,2]
[421185917,1777224643989,-500.0,0.00019178,2]
[421185919,1777224643998,-1376.88,0.00019178,2]
[421185921,1777224644008,-500.0,0.00019178,2]
[421185923,1777224644018,-500.0,0.00019178,2]
[421185925,1777224644028,-500.0,0.00019178,2]
[421185927,1777224644037,-25911.505281,0.00019178,2]
[421185929,1777224644047,-500.0,0.00019178,2]
[421185931,1777224644057,-500.0,0.00019178,2]
[421185933,1777224644066,-516.08,0.00019178,2]
[421185935,1777224644076,-2305.68,0.00019178,2]
[421185937,1777224644085,-500.0,0.00019178,2]
[421185939,1777224644094,-537.62250774,0.00019178,2]
[421185941,1777224644103,-500.0,0.00019178,2]
[421185943,1777224644112,-1025.03,0.00019178,2]
[421185945,1777224644123,-500.0,0.00019178,2]
[421185947,1777224644132,-500.0,0.00019178,2]
[421185948,1777224644142,-500.0,0.00019178,2]
[421185950,1777224644151,-500.0,0.00019178,2]
[421185952,1777224644160,-500.0,0.00019178,2]
[421185954,1777224644170,-500.0,0.00019178,2]
[421185956,1777224644180,-500.0,0.00019178,2]
[421185958,1777224644189,-614.69611814,0.00019178,2]
[421185960,1777224644198,-500.0,0.00019178,2]
[421185962,1777224644207,-500.0,0.00019178,2]
[421185964,1777224644217,-152.49,0.00019178,2]
[421185966,1777224644226,-500.0,0.00019178,2]
[421185968,1777224644235,-500.0,0.00019178,2]
[421185970,1777224644244,-500.0,0.00019178,2]
[421185972,1777224644253,-727.72,0.00019178,2]
[421185974,1777224644262,-500.0,0.00019178,2]
[421185976,1777224644271,-741.69,0.00019178,2]
[421185978,1777224644280,-1014.14,0.00019178,2]
[421185980,1777224644289,-500.0,0.00019178,2]
[421185982,1777224644298,-500.0,0.00019178,2]
[421185983,1777224644307,-500.0,0.00019178,2]
[421185985,1777224644316,-1241.41,0.00019178,2]
[421185987,1777224644326,-500.0,0.00019178,2]
[421185989,1777224644337,-500.0,0.00019178,2]
[421185991,1777224644347,-500.0,0.00019178,2]
[421185993,1777224644359,-500.0,0.00019178,2]
[421185995,1777224644369,-1144.41,0.00019178,2]
[421185997,1777224644381,-500.0,0.00019178,2]
[421185999,1777224644391,-757.57,0.00019178,2]
[421186001,1777224644401,-500.0,0.00019178,2]
[421186003,1777224644410,-500.0,0.00019178,2]
[421186005,1777224644419,-500.0,0.00019178,2]
[421186007,1777224644428,-500.0,0.00019178,2]
[421186008,1777224644437,-883.15,0.00019178,2]
[421186010,1777224644447,-500.0,0.00019178,2]
[421186012,1777224644456,-542.71413919,0.00019178,2]
[421186014,1777224644465,-500.0,0.00019178,2]
[421186016,1777224644474,-500.0,0.00019178,2]
[421186018,1777224644484,-1785.21,0.00019178,2]
[421186020,1777224644493,-531.40183476,0.00019178,2]
[421186022,1777224644502,-3763.08,0.00019178,2]
[421186024,1777224644511,-1000.0,0.00019178,2]
[421186026,1777224644520,-500.0,0.00019178,2]
[421186028,1777224644529,-500.0,0.00019178,2]
[421186030,1777224644539,-500.0,0.00019178,2]
[421186032,1777224644549,-500.0,0.00019178,2]
[421186034,1777224644558,-520.52561113,0.00019178,2]
[421186035,1777224644568,-523.88236197,0.00019178,2]
[421186037,1777224644577,-500.0,0.00019178,2]
[421186039,1777224644587,-500.0,0.00019178,2]
[421186041,1777224644596,-618.79,0.00019178,2]
[421186043,1777224644607,-500.0,0.00019178,2]
[421186045,1777224644616,-500.0,0.00019178,2]
[421186047,1777224644627,-500.0,0.00019178,2]
[421186049,1777224644637,-500.0,0.00019178,2]
[421186051,1777224644646,-528.98360639,0.00019178,2]
[421186053,1777224644656,-500.0,0.00019178,2]
[421186055,1777224644665,-983.14,0.00019178,2]
[421186057,1777224644675,-500.0,0.00019178,2]
[421186059,1777224644685,-500.0,0.00019178,2]
[421186061,1777224644694,-500.0,0.00019178,2]
[421186063,1777224644703,-500.0,0.00019178,2]
[421186065,1777224644712,-500.0,0.00019178,2]
[421186067,1777224644722,-500.0,0.00019178,2]
[421186069,1777224644732,-500.0,0.00019178,2]
[421186071,1777224644741,-500.0,0.00019178,2]
[421186073,1777224644751,-539.99165113,0.00019178,2]
[421186075,1777224644761,-151.0,0.00019178,2]
[421186077,1777224644770,-151.0,0.00019178,2]
[421186079,1777224644779,-151.0,0.00019178,2]
[421186081,1777224644789,-536.91,0.00019178,2]
[421186083,1777224644799,-151.0,0.00019178,2]
[421186085,1777224644808,-151.0,0.00019178,2]
[421186087,1777224644818,-233.172933,0.00019178,2]
[421186089,1777224644827,-500.0,0.00019178,2]
[421186090,1777224644836,-1263.92,0.00019178,2]
[421186092,1777224644846,-500.0,0.00019178,2]
[421186094,1777224644855,-2844.98,0.00019178,2]
[421186096,1777224644865,-500.0,0.00019178,2]
[421186098,1777224644874,-511.72143799,0.00019178,2]
[421186100,1777224644883,-500.0,0.00019178,2]
[421186102,1777224644895,-500.0,0.00019178,2]
[421186104,1777224644904,-547.67531505,0.00019178,2]
[421186106,1777224644914,-199.96809297,0.00019178,2]
[421186108,1777224644923,-500.0,0.00019178,2]
[421186110,1777224644932,-500.0,0.00019178,2]
[421186112,1777224644941,-500.0,0.00019178,2]
[421186114,1777224644950,-510.1,0.00019178,2]
[421186116,1777224644959,-500.0,0.00019178,2]
[421186118,1777224644968,-500.0,0.00019178,2]
[421186120,1777224644977,-500.0,0.00019178,2]
[421186121,1777224644987,-500.0,0.00019178,2]
[421186123,1777224644996,-500.0,0.00019178,2]
[421186125,1777224645005,-500.0,0.00019178,2]
[421186127,1777224645014,-716.62,0.00019178,2]
[421186129,1777224645023,-471.97317303,0.00019178,2]
[421186131,1777224645032,-660.94,0.00019178,2]
[421186133,1777224645041,-500.0,0.00019178,2]
[421186135,1777224645050,-500.0,0.00019178,2]
[421186137,1777224645059,-1320.04,0.00019178,2]
[421186139,1777224645067,-500.0,0.00019178,2]
[421186141,1777224645076,-500.0,0.00019178,2]
[421186143,1777224645086,-500.0,0.00019178,2]
[421186145,1777224645095,-500.0,0.00019178,2]
[421186146,1777224645105,-500.0,0.00019178,2]
[421186148,1777224645114,-500.0,0.00019178,2]
[421186150,1777224645124,-500.0,0.00019178,2]
[421186152,1777224645134,-1730.64,0.00019178,2]
[421186154,1777224645144,-500.0,0.00019178,2]
[421186156,1777224645154,-500.0,0.00019178,2]
[421186159,1777224645164,-500.0,0.00019178,2]
[421186161,1777224645174,-541.61579629,0.00019178,2]
[421186163,1777224645185,-1011.24,0.00019178,2]
[421186165,1777224645195,-500.0,0.00019178,2]
[421186167,1777224645206,-500.0,0.00019178,2]
[421186169,1777224645215,-500.0,0.00019178,2]
[421186171,1777224645225,-500.0,0.00019178,2]
[421186173,1777224645235,-151.0,0.00019178,2]
[421186175,1777224645245,-151.0,0.00019178,2]
[421186177,1777224645255,-151.0,0.00019178,2]
[421186179,1777224645265,-151.0,0.00019178,2]
[421186181,1777224645275,-1157.05,0.00019178,2]
[421186183,1777224645285,-198.711208,0.00019178,2]
[421186184,1777224645296,-500.0,0.00019178,2]
[421186186,1777224645306,-500.0,0.00019178,2]
[421186188,1777224645316,-500.0,0.00019178,2]
[421186190,1777224645326,-500.0,0.00019178,2]
[421186192,1777224645336,-1486.83,0.00019178,2]
[421186194,1777224645346,-500.0,0.00019178,2]
[421186196,1777224645356,-500.0,0.00019178,2]
[421186198,1777224645366,-539.60240187,0.00019178,2]
[421186201,1777224645376,-515.23275778,0.00019178,2]
[421186203,1777224645387,-500.0,0.00019178,2]
[421186205,1777224645398,-500.0,0.00019178,2]
[421186207,1777224645408,-927.52,0.00019178,2]
[421186209,1777224645418,-500.0,0.00019178,2]
[421186211,1777224645428,-521.93158578,0.00019178,2]
[421186213,1777224645437,-523.12683754,0.00019178,2]
[421186215,1777224645447,-500.0,0.00019178,2]
[421186216,1777224645457,-500.0,0.00019178,2]
[421186218,1777224645468,-500.0,0.00019178,2]
[421186221,1777224645478,-6638.39,0.00019178,2]
[421186223,1777224645488,-1152.71,0.00019178,2]
[421186224,1777224645499,-500.0,0.00019178,2]
[421186226,1777224645509,-500.0,0.00019178,2]
[421186228,1777224645519,-500.0,0.00019178,2]
[421186230,1777224645529,-500.0,0.00019178,2]
[421186232,1777224645540,-500.0,0.00019178,2]
[421186234,1777224645550,-593.83078306,0.00019178,2]
[421186236,1777224645561,-3198.85,0.00019178,2]
[421186238,1777224645570,-500.0,0.00019178,2]
[421186240,1777224645581,-500.0,0.00019178,2]
[421186242,1777224645591,-500.0,0.00019178,2]
[421186244,1777224645602,-515.65151387,0.00019178,2]
[421186246,1777224645613,-500.0,0.00019178,2]
[421186248,1777224645624,-500.0,0.00019178,2]
[421186250,1777224645634,-167.300273,0.00019178,2]
[421186253,1777224645645,-167.300273,0.00019178,2]
[421186254,1777224645657,-167.300273,0.00019178,2]
[421186255,1777224645667,-2510.71,0.00019178,2]
[421186256,1777224645677,-167.300273,0.00019178,2]
[421186257,1777224645687,-500.0,0.00019178,2]
[421186258,1777224645696,-500.0,0.00019178,2]
[421186259,1777224645706,-167.300273,0.00019178,2]
[421186260,1777224645716,-167.300273,0.00019178,2]
[421186261,1777224645726,-500.0,0.00019178,2]
[421186262,1777224645737,-167.300273,0.00019178,2]
[421186263,1777224645747,-1213.89,0.00019178,2]
[421186265,1777224645757,-500.0,0.00019178,2]
[421186266,1777224645767,-500.0,0.00019178,2]
[421186267,1777224645777,-500.0,0.00019178,2]
[421186268,1777224645787,-773.28,0.00019178,2]
[421186269,1777224645798,-500.0,0.00019178,2]
[421186270,1777224645807,-2355.6,0.00019178,2]
[421186271,1777224645818,-635.58,0.00019178,2]
[421186272,1777224645828,-500.0,0.00019178,2]
[421186273,1777224645838,-500.0,0.00019178,2]
[421186274,1777224645848,-167.300273,0.00019178,2]
[421186275,1777224645858,-652.16,0.00019178,2]
[421186276,1777224645869,-4465.9,0.00019178,2]
[421186277,1777224645879,-167.300273,0.00019178,2]
[421186278,1777224645889,-167.300273,0.00019178,2]
[421186279,1777224645899,-167.300273,0.00019178,2]
[421186280,1777224645909,-167.300273,0.00019178,2]
[421186281,1777224645920,-500.0,0.00019178,2]
[421186282,1777224645930,-167.300273,0.00019178,2]
[421186283,1777224645940,-500.0,0.00019178,2]
[421186284,1777224645950,-167.300273,0.00019178,2]
[421186285,1777224645961,-167.300273,0.00019178,2]
[421186286,1777224645970,-167.300274,0.00019178,2]
[421186287,1777224645980,-500.0,0.00019178,2]
[421186288,1777224645990,-500.0,0.00019178,2]
[421186289,1777224646000,-500.0,0.00019178,2]
[421186290,1777224646011,-500.0,0.00019178,2]
[421186291,1777224646022,-500.0,0.00019178,2]
[421186292,1777224646031,-514.8809254,0.00019178,2]
[421186293,1777224646041,-1491.31,0.00019178,2]
[421186294,1777224646051,-614.27870699,0.00019178,2]
[421186295,1777224646060,-349.57235201,0.00019178,2]
[421186296,1777224646070,-500.0,0.00019178,2]
[421186297,1777224646080,-658.87,0.00019178,2]
[421186298,1777224646090,-500.0,0.00019178,2]
[421186299,1777224646100,-500.0,0.00019178,2]
[421186300,1777224646109,-294.143347,0.00019178,2]
[421186301,1777224646120,-500.0,0.00019178,2]
[421186302,1777224646130,-500.0,0.00019178,2]
[421186303,1777224646139,-500.0,0.00019178,2]
[421186304,1777224646149,-500.0,0.00019178,2]
[421186305,1777224646159,-599.43489504,0.00019178,2]
[421186306,1777224646170,-500.0,0.00019178,2]
[421186308,1777224646179,-500.0,0.00019178,2]
[421186310,1777224646190,-1113.78,0.00019178,2]
[421186312,1777224646199,-500.0,0.00019178,2]
[421186314,1777224646209,-1000.0,0.00019178,2]
[421186315,1777224646218,-500.0,0.00019178,2]
[421186316,1777224646227,-307.4833,0.00019178,2]
[421186317,1777224646236,-500.0,0.00019178,2]
[421186318,1777224646246,-500.0,0.00019178,2]
[421186319,1777224646256,-500.0,0.00019178,2]
[421186320,1777224646265,-500.0,0.00019178,2]
[421186321,1777224646275,-526.90005449,0.00019178,2]
[421186322,1777224646284,-315.88,0.00019178,2]
[421186323,1777224646294,-500.0,0.00019178,2]
[421186324,1777224646303,-608.97,0.00019178,2]
[421186325,1777224646313,-417.50609159,0.00019178,2]
[421186326,1777224646323,-500.0,0.00019178,2]
[421186327,1777224646332,-500.0,0.00019178,2]
[421186328,1777224646341,-532.01533317,0.00019178,2]
[421186329,1777224646352,-500.0,0.00019178,2]
[421186330,1777224646361,-546.41576906,0.00019178,2]
[421186331,1777224646371,-500.0,0.00019178,2]
[421186332,1777224646381,-500.0,0.00019178,2]
[421186333,1777224646391,-516.18127279,0.00019178,2]
[421186334,1777224646400,-500.0,0.00019178,2]
[421186335,1777224646410,-1044.21,0.00019178,2]
[421186336,1777224646419,-2452.15,0.00019178,2]
[421186337,1777224646430,-500.0,0.00019178,2]
[421186338,1777224646440,-500.0,0.00019178,2]
[421186339,1777224646450,-1306.95,0.00019178,2]
[421186340,1777224646459,-1449.03,0.00019178,2]
[421186341,1777224646469,-1111.45,0.00019178,2]
[421186342,1777224646479,-500.0,0.00019178,2]
[421186343,1777224646489,-522.96464246,0.00019178,2]
[421186344,1777224646499,-500.0,0.00019178,2]
[421186345,1777224646509,-500.0,0.00019178,2]
[421186346,1777224646519,-500.0,0.00019178,2]
[421186347,1777224646529,-500.0,0.00019178,2]
[421186348,1777224646539,-500.0,0.00019178,2]
[421186349,1777224646550,-507.05534258,0.00019178,2]
[421186350,1777224646560,-554.02538585,0.00019178,2]
[421186351,1777224646570,-3617.76,0.00019178,2]
[421186352,1777224646580,-500.0,0.00019178,2]
[421186353,1777224646590,-500.0,0.00019178,2]
[421186354,1777224646599,-500.0,0.00019178,2]
[421186355,1777224646610,-764.89,0.00019178,2]
[421186356,1777224646621,-4212.33,0.00019178,2]
[421186357,1777224646630,-500.0,0.00019178,2]
[421186358,1777224646640,-1855.18,0.00019178,2]
[421186359,1777224646650,-500.0,0.00019178,2]
[421186360,1777224646660,-500.0,0.00019178,2]
[421186361,1777224646669,-514.29803818,0.00019178,2]
[421186362,1777224646679,-500.0,0.00019178,2]
[421186363,1777224646689,-500.0,0.00019178,2]
[421186364,1777224646699,-500.0,0.00019178,2]
[421186365,1777224646708,-500.0,0.00019178,2]
[421186366,1777224646718,-500.0,0.00019178,2]
[421186367,1777224646728,-500.0,0.00019178,2]
[421186368,1777224646738,-241.10774759,0.00019178,2]
[421186369,1777224646747,-456.48594067,0.00019178,2]
[421186370,1777224646757,-500.0,0.00019178,2]
[421186371,1777224646767,-500.0,0.00019178,2]
[421186372,1777224646777,-500.0,0.00019178,2]
[421186373,1777224646787,-500.0,0.00019178,2]
[421186374,1777224646797,-500.0,0.00019178,2]
[421186375,1777224646807,-272.51132369,0.00019178,2]
[421186376,1777224646817,-392.25172204,0.00019178,2]
[421186377,1777224646826,-500.0,0.00019178,2]
[421186378,1777224646837,-500.0,0.00019178,2]
[421186379,1777224646847,-275.584219,0.00019178,2]
[421186380,1777224646857,-275.584219,0.00019178,2]
[421186381,1777224646867,-275.584219,0.00019178,2]
[421186382,1777224646877,-275.584219,0.00019178,2]
[421186383,1777224646887,-805.51,0.00019178,2]
[421186384,1777224646897,-275.584219,0.00019178,2]
[421186385,1777224646908,-275.584219,0.00019178,2]
[421186386,1777224646917,-275.584219,0.00019178,2]
[421186387,1777224646927,-275.584219,0.00019178,2]
[421186388,1777224646937,-500.0,0.00019178,2]
[421186389,1777224646947,-275.584219,0.00019178,2]
[421186390,1777224646957,-275.584219,0.00019178,2]
[421186391,1777224646967,-275.584219,0.00019178,2]
[421186392,1777224646977,-275.584219,0.00019178,2]
[421186393,1777224646987,-275.584219,0.00019178,2]
[421186394,1777224646997,-2166.98,0.00019178,2]
[421186395,1777224647007,-275.584219,0.00019178,2]
[421186396,1777224647016,-275.584219,0.00019178,2]
[421186397,1777224647027,-275.584228,0.00019178,2]
[421186398,1777224647037,-521.79419542,0.00019178,2]
[421186399,1777224647047,-500.0,0.00019178,2]
[421186400,1777224647057,-500.0,0.00019178,2]
[421186401,1777224647067,-500.0,0.00019178,2]
[421186402,1777224647076,-500.0,0.00019178,2]
[421186403,1777224647086,-518.98926808,0.00019178,2]
[421186404,1777224647096,-4318.69,0.00019178,2]
[421186405,1777224647106,-500.0,0.00019178,2]
[421186406,1777224647116,-521.71843471,0.00019178,2]
[421186407,1777224647126,-530.96895771,0.00019178,2]
[421186408,1777224647135,-516.90317967,0.00019178,2]
[421186409,1777224647145,-1539.5,0.00019178,2]
[421186410,1777224647155,-500.0,0.00019178,2]
[421186411,1777224647164,-500.0,0.00019178,2]
[421186412,1777224647175,-511.02176441,0.00019178,2]
[421186413,1777224647185,-500.0,0.00019178,2]
[421186414,1777224647195,-1000.0,0.00019178,2]
[421186415,1777224647204,-500.0,0.00019178,2]
[421186416,1777224647214,-1871.75,0.00019178,2]
[421186417,1777224647224,-1000.0,0.00019178,2]
[421186418,1777224647234,-667.42656494,0.00019178,2]
[421186419,1777224647244,-500.0,0.00019178,2]